fUST/lending_fUST_20260207
["ID","MTS","AMOUNT","RATE_DAILY","PERIOD"]
[404693095,1770473432152,-500.0,0.00023865,2]
[404693096,1770473432161,-192.95013239,0.00023865,2]
[404693136,1770473438220,-307.04986761,0.00023865,2]
[404693138,1770473438230,-300.0,0.00023865,2]
[404693140,1770473438240,-228.8858507,0.00023865,2]
[404693142,1770473438249,-500.0,0.00023865,2]
[404693144,1770473438258,-500.0,0.00023865,2]
[404693146,1770473438268,-500.0,0.00023865,2]
[404693148,1770473438277,-603.63552942,0.00023865,2]
[404693150,1770473438287,-1850.1386767,0.00023866,2]
[404693152,1770473438296,-50000.0,0.00023866,2]
[404693154,1770473438305,-3240.73357341,0.00023898,2]
[404693156,1770473438315,-500.0,0.00023998,2]
[404693158,1770473438324,-500.0,0.00023999,2]
[404693161,1770473438335,-613.10460614,0.00023999,2]
[404693163,1770473438345,-519.2208555,0.00024,2]
[404693165,1770473438354,-220.65389676,0.00024,2]
[404693166,1770473438364,-397.17701417,0.00024,2]
[404693169,1770473438373,-706.09246963,0.00024,2]
[404693170,1770473438383,-282.94209076,0.00024,2]
[404693173,1770473438393,-509.29576336,0.00024,2]
[404693174,1770473438402,-905.41469042,0.00024,2]
[404693177,1770473438412,-1414.71045378,0.00024,2]
[404693178,1770473438421,-1102.16621431,0.00024,2]
[404693180,1770473438431,-500.0,0.00024065,2]
[404693182,1770473438440,-486.11966,0.0002417,2]
[404693184,1770473438450,-2035.14587039,0.00024325,2]
[404693186,1770473438459,-420.0,0.00024634,2]
[404693188,1770473438468,-177.0,0.00024686,2]
[404693190,1770473438478,-194.73,0.000247,2]
[404693192,1770473438491,-217.0,0.00024748,2]
[404693195,1770473438501,-2079.0869274,0.00024834,2]
[404693197,1770473438511,-789.3,0.00025113,10]
[404693199,1770473438521,-24014.0862768,0.00025123,2]
[404693201,1770473438531,-1000.0,0.00025259,2]
[404693203,1770473438540,-500.0,0.00025673,2]
[404693205,1770473438549,-980.433435,0.00025673,2]
[404693206,1770473438560,-500.0,0.00025947,2]
[404693208,1770473438569,-3240.73357341,0.00026106,2]
[404693210,1770473438578,-500.0,0.00026221,2]
[404693213,1770473438588,-203.348,0.00026276,2]
[404693215,1770473438598,-150.946,0.00026276,2]
[404693216,1770473438607,-1046.189,0.00026276,2]
[404693218,1770473438615,-878.15,0.00026276,2]
[404693220,1770473438624,-503.78410191,0.00026495,2]
[404693222,1770473438632,-250.0,0.0002659,2]
[404693224,1770473438641,-250.0,0.0002659,2]
[404693226,1770473438650,-250.0,0.0002659,2]
[404693228,1770473438659,-250.0,0.0002659,2]
[404693230,1770473438669,-250.0,0.0002659,2]
[404693232,1770473438678,-250.0,0.0002659,2]
[404693235,1770473438687,-271.64953388,0.0002659,2]
[404693237,1770473438697,-250.0,0.0002659,2]
[404693239,1770473438707,-250.0,0.0002659,2]
[404693240,1770473438716,-250.0,0.0002659,2]
[404693242,1770473438726,-187.78006525,0.0002659,2]
[404693244,1770473438736,-250.0,0.0002659,2]
[404693247,1770473438745,-250.0,0.0002659,2]
[404693248,1770473438755,-194.72792766,0.0002659,2]
[404693250,1770473438765,-250.0,0.0002659,2]
[404693252,1770473438774,-201.93286099,0.0002659,2]
[404693254,1770473438783,-500.0,0.0002659,2]
[404693256,1770473438794,-250.0,0.0002659,2]
[404693258,1770473438803,-209.40437684,0.0002659,2]
[404693275,1770473438940,-500.0,0.0002659,2]
[404693277,1770473438951,-168.78958132,0.0002659,2]
[404693279,1770473438960,-250.0,0.0002659,2]
[404693281,1770473438970,-217.15233878,0.0002659,2]
[404693283,1770473438980,-500.0,0.0002659,2]
[404693285,1770473438989,-225.18697532,0.0002659,2]
[404693287,1770473439000,-250.0,0.0002659,2]
[404693289,1770473439010,-233.51889341,0.0002659,2]
[404693291,1770473439019,-242.15909246,0.0002659,2]
[404693293,1770473439029,-251.11897888,0.0002659,2]
[404693295,1770473439039,-260.4103811,0.0002659,2]
[404693297,1770473439048,-270.0455652,0.0002659,2]
[404693299,1770473439058,-280.03725112,0.0002659,2]
[404693301,1770473439067,-290.39862941,0.0002659,2]
[404693303,1770473439076,-301.1433787,0.0002659,2]
[404693305,1770473439085,-500.0,0.0002659,2]
[404693307,1770473439095,-500.0,0.0002659,2]
[404693309,1770473439104,-500.0,0.0002659,2]
[404693311,1770473439116,-500.0,0.0002659,2]
[404693313,1770473439125,-500.0,0.0002659,2]
[404693315,1770473439133,-500.0,0.0002659,2]
[404693317,1770473439143,-500.0,0.0002659,2]
[404693319,1770473439152,-500.0,0.0002659,2]
[404693321,1770473439161,-250.0,0.0002659,2]
[404693323,1770473439171,-500.0,0.0002659,2]
[404693325,1770473439180,-250.0,0.0002659,2]
[404693327,1770473439190,-500.0,0.0002659,2]
[404693329,1770473439199,-250.0,0.0002659,2]
[404693331,1770473439208,-500.0,0.0002659,2]
[404693333,1770473439217,-250.0,0.0002659,2]
[404693335,1770473439227,-500.0,0.0002659,2]
[404693337,1770473439236,-250.0,0.0002659,2]
[404693339,1770473439245,-500.0,0.0002659,2]
[404693341,1770473439255,-250.0,0.0002659,2]
[404693343,1770473439264,-500.0,0.0002659,2]
[404693345,1770473439273,-250.0,0.0002659,2]
[404693347,1770473439282,-250.0,0.0002659,2]
[404693350,1770473439302,-358.62786775,0.0002659,2]
[404693353,1770473439313,-529.63480408,0.00026597,30]
[404693355,1770473439323,-204.0,0.00026686,2]
[404693357,1770473439335,-587.0,0.0002675,2]
[404693359,1770473439345,-980.433435,0.00026753,2]
[404693361,1770473439355,-600.0,0.0002689,2]
[404693362,1770473439365,-600.0,0.0002689,3]
[404693363,1770473439374,-159.0,0.000269,7]
[404693364,1770473439384,-158.98081193,0.000269,9]
[404693365,1770473439393,-539.35053509,0.00026951,7]
[404693366,1770473439403,-5000.0,0.00027,2]
[404693367,1770473439413,-15261.56195168,0.00027,2]
[404693368,1770473439423,-150.0,0.00027265,30]
[404693369,1770473439433,-115.29998704,0.00027265,30]
[404693532,1770473440973,-30.11224421,0.00027265,30]
[404693656,1770473446380,-1963.19956675,0.00027265,30]
[404693657,1770473446394,-4067.223596,0.00027265,30]
[404693658,1770473446407,-6025.835394,0.00027265,30]
[404693659,1770473446420,-4312.15585836,0.00027265,30]
[404693660,1770473446436,-3672.29133364,0.00027265,30]
[404693661,1770473446448,-2327.25145486,0.00027265,30]
[404693662,1770473446500,-18.29088338,0.00027265,30]
[404693665,1770473446859,-7597.51665176,0.00027265,30]
[404693666,1770473446871,-11901.670789,0.00027265,30]
[404693668,1770473446884,-13860.282587,0.00027265,30]
[404693670,1770473446895,-15818.894385,0.00027265,30]
[404693671,1770473446907,-1429.50945775,0.00027265,30]
[404693672,1770473446921,-15139.49199604,0.00027265,30]
[404693673,1770473447935,-35.29033184,0.00027265,30]
[404693674,1770473447949,-1173.21439737,0.00027265,30]
[404693675,1770473447960,-1232.37,0.00027387,10]
[404693676,1770473447971,-391.34895002,0.00027387,2]
[404693677,1770473447981,-275.6,0.00027397,16]
[404693678,1770473447992,-151.0,0.00027397,2]
[404693679,1770473448004,-151.0,0.00027397,2]
[404693680,1770473448014,-151.0,0.00027397,2]
[404693681,1770473448025,-151.0,0.00027397,2]
[404693682,1770473448036,-259.8,0.00027397,2]
[404693683,1770473448047,-259.8,0.00027397,2]
[404693684,1770473448058,-259.8,0.00027397,2]
[404693685,1770473448068,-259.8,0.00027397,2]
[404693686,1770473448079,-259.8,0.00027397,2]
[404693687,1770473448090,-259.8,0.00027397,2]
[404693688,1770473448101,-259.8,0.00027397,2]
[404693689,1770473448113,-259.8,0.00027397,2]
[404693690,1770473448124,-259.8,0.00027397,2]
[404693691,1770473448135,-259.8,0.00027397,2]
[404693692,1770473448145,-259.8,0.00027397,2]
[404693693,1770473448155,-259.8,0.00027397,2]
[404693694,1770473448165,-259.8,0.00027397,2]
[404693695,1770473448174,-259.8,0.00027397,2]
[404693696,1770473448183,-259.8,0.00027397,2]
[404693697,1770473448194,-259.8,0.00027397,2]
[404693698,1770473448205,-259.8,0.00027397,2]
[404693699,1770473448215,-259.8,0.00027397,2]
[404693700,1770473448226,-259.8,0.00027397,2]
[404693701,1770473448235,-259.8,0.00027397,2]
[404693702,1770473448404,-151.0,0.00027397,2]
[404693703,1770473448417,-151.0,0.00027397,2]
[404693704,1770473448427,-151.0,0.00027397,2]
[404693705,1770473448436,-150.0,0.00027397,5]
[404693706,1770473448446,-782.69790004,0.00027531,2]
[404693707,1770473448455,-1673.65,0.00027531,3]
[404693708,1770473448464,-836.82,0.00027531,3]
[404693709,1770473448474,-418.41,0.00027531,3]
[404693710,1770473448483,-209.21,0.00027531,3]
[404693711,1770473448495,-226.54340463,0.00027531,3]
[404693712,1770473448506,-401.08659537,0.00027531,3]
[404693713,1770473448516,-911.91340463,0.0002755,30]
[404693724,1770473727871,500.0,0.00027599,120]
[404693725,1770473728435,500.0,0.00027979,120]
[404693726,1770473728668,500.0,0.00028499,120]
[404693727,1770473728898,518.94139039,0.00028499,120]
[404693740,1770474572086,-300.0,0.00019999,2]
[404693741,1770474572106,-15263.03634144,0.0002,2]
[404693772,1770474632168,-531.20795064,0.0002,2]
[404693838,1770474638311,-2196.42805071,0.0002,2]
[404693840,1770474638321,-300.0,0.00020999,2]
[404693842,1770474638331,-1200.0,0.00020999,2]
[404693844,1770474638341,-85.8953667,0.00021,2]
[404694008,1770474720212,-300.0,0.00020999,2]
[404694009,1770474722819,300.0,0.00020999,2]
[404694010,1770474737054,-252.38634335,0.00021,2]
[404694011,1770474805639,-1000.0,0.00020582,2]
[404694012,1770474807492,-1000.0,0.00020582,2]
[404694013,1770474808463,-1000.0,0.00020582,2]
[404694014,1770474809500,-1000.0,0.00020582,2]
[404694015,1770474810383,-1000.0,0.00020582,2]
[404694016,1770474814208,-150.0,0.00020686,2]
[404694017,1770474814232,-350.0,0.0002079,2]
[404694022,1770475595117,-4650.0,0.00019182,2]
[404694023,1770475595140,-300.0,0.00019375,2]
[404694024,1770475595161,-4150.38010621,0.00019376,2]
[404694025,1770475595185,-5192.20428899,0.00019376,2]
[404694363,1770475840830,-150.0,0.00019476,2]
[404694365,1770475840840,-943.98046092,0.00019478,2]
[404694913,1770475847717,-2799.99999976,0.00019478,2]
[404694914,1770475847768,-1588.0649328,0.00019478,2]
[404694919,1770475926440,-151.0,0.00018711,2]
[404694924,1770476500812,-877.39972818,0.00018145,2]
[404694925,1770476500839,-930.95922773,0.00018145,2]
[404694926,1770476530148,-150.0,0.00018514,2]
[404694927,1770476530179,-255.39972818,0.00018698,2]
[404694928,1770476530218,-66.60027182,0.00018698,2]
[404694929,1770476559514,-177.79972818,0.000187,2]
[404694930,1770476559554,-49.80027182,0.000187,2]
[404694931,1770476588707,-177.79972818,0.000189,2]
[404694937,1770476974133,-428.40030386,0.000189,2]
[404694938,1770476974153,-1000.0,0.00019116,2]
[404694939,1770476974175,-300.8259563,0.00019557,2]
[404694963,1770477031655,-621.39140172,0.00019557,2]
[404695017,1770477039936,-557.53053933,0.00019557,2]
[404695365,1770477044439,-6425.02221754,0.00019557,2]
[404695366,1770477044449,-150.0,0.00019557,2]
[404695368,1770477044459,-358.89568061,0.00019999,2]
[404695370,1770477044468,-300.0,0.00019999,2]
[404695371,1770477044478,-5000.86829785,0.0002,10]
[404695372,1770477044487,-377.7550763,0.0002058,2]
[404695373,1770477044498,-2722.9578933,0.00020877,2]
[404695374,1770477044509,-2430.55018011,0.00020898,2]
[404695375,1770477044519,-1343.45212264,0.00020998,2]
[404695717,1770477064260,500.0,0.00013273,2]
[404695718,1770477064287,352.12292991,0.00013821,2]
[404695722,1770477184107,510.44546559,0.00013273,2]
[404695723,1770477186365,455.60127165,0.00013273,2]
[404695726,1770477307174,500.0,0.00013273,2]
[404695727,1770477307437,586.31061721,0.00013273,2]
[404695728,1770477366350,501.149941,0.00013273,2]
[404695729,1770477366648,502.97656979,0.00013273,2]
[404695732,1770477544606,452.75553748,0.00013273,2]
[404695733,1770477571564,166.0,0.00030137,120]
[404695734,1770477603857,500.0,0.00013273,2]
[404695735,1770477663361,501.10194989,0.00013273,2]
[404695736,1770477664157,612.47194087,0.00013273,2]
[404695740,1770477725851,500.0,0.00013273,2]
[404695743,1770477843750,500.0,0.00013273,2]
[404695744,1770477843775,500.68852177,0.00013699,2]
[404695745,1770477843813,501.23854849,0.00013821,2]
[404695811,1770478231818,-1729.22626016,0.00017464,2]
[404695813,1770478231827,-300.0,0.00017639,2]
[404695815,1770478231837,-300.0,0.00017639,2]
[404695817,1770478231847,-1200.0,0.00017639,2]
[404695819,1770478231855,-6782.632734,0.0001764,2]
[404695822,1770478231867,-990.71723655,0.0001764,2]
[404695878,1770478237863,-448.35098415,0.0001764,2]
[404695881,1770478237873,-383.5859022,0.0001764,2]
[404695882,1770478237882,-150.0,0.00018476,2]
[404695884,1770478237892,-242.0,0.00019,2]
[404695886,1770478237902,-420.0,0.00019253,2]
[404695888,1770478237912,-1680.0,0.00019348,2]
[404695890,1770478237921,-8969.677974,0.00019539,2]
[404695893,1770478237933,-2126.73140757,0.00019563,2]
[404695894,1770478237943,-212.35672495,0.00019664,2]
[404695897,1770478237953,-242.69339994,0.00019664,2]
[404695898,1770478237962,-378.82922898,0.00019664,2]
[404695899,1770478237972,-279.59114065,0.00019664,2]
[404695900,1770478237983,-319.53273217,0.00019664,2]
[404695901,1770478237993,-498.77062412,0.00019664,2]
[404695902,1770478238002,-8558.94980491,0.00019664,2]
[404695903,1770478238017,-9312.88002443,0.00019664,2]
[404695904,1770478238027,-6621.32748925,0.00019994,2]
[404696262,1770478244939,-500.0,0.00019663,2]
[404696263,1770478244948,-187.64475544,0.00019663,2]
[404696264,1770478244957,-387.59471302,0.00019663,2]
[404696287,1770478245961,-112.40528698,0.00019663,2]
[404696288,1770478245971,-291.59471303,0.00019663,2]
[404696289,1770478246150,-208.40528697,0.00019663,2]
[404696290,1770478246159,-500.0,0.00019663,2]
[404696291,1770478246168,-500.0,0.00019663,2]
[404696292,1770478246177,-500.0,0.00019663,2]
[404696293,1770478246186,-4046.6004661,0.00019994,2]
[404696294,1770478246296,-1500.0,0.00019994,2]
[404696299,1770478267337,502.59904967,0.00013699,2]
[404696300,1770478268627,500.0,0.00013273,2]
[404696301,1770478270669,502.63996861,0.00013273,2]
[404696302,1770478270696,500.0,0.00013699,2]
[404696303,1770478274269,500.83543324,0.00013273,2]
[404696304,1770478274296,433.49647408,0.00013699,2]
[404696305,1770478277508,500.0,0.00013699,2]
[404696306,1770478277574,764.53786659,0.00014247,2]
[404696307,1770478278056,502.15650295,0.00013699,2]
[404696308,1770478278388,300.0,0.00013673,2]
[404696309,1770478278452,748.84390331,0.00014221,2]
[404696602,1770478282377,500.0,0.00013699,2]
[404696609,1770478282431,652.38634335,0.00014247,2]
[404696612,1770478282453,354.05079491,0.00014247,2]
[404696727,1770478283639,500.0,0.00013273,2]
[404696734,1770478283705,1000.0,0.00013821,2]
[404696854,1770478285081,500.0,0.00013273,2]
[404696861,1770478285140,1575.8869344,0.00014368,2]
[404696868,1770478285198,1000.0,0.00013821,2]
[404698290,1770478328623,527.12815835,0.00013699,2]
[404698291,1770478328657,500.0,0.00013273,2]
[404698292,1770478328704,1000.0,0.00013821,2]
[404698293,1770478328761,1500.0,0.00014368,2]
[404698294,1770478330647,500.0,0.00013699,2]
[404698295,1770478330702,1059.12748247,0.00014247,2]
[404698296,1770478383834,634.167459,0.00013273,2]
[404698297,1770478384004,500.90211145,0.00013273,2]
[404698298,1770478387701,500.0,0.00013273,2]
[404698299,1770478387738,1000.0,0.00013821,2]
[404698300,1770478387782,500.0,0.00013273,2]
[404698301,1770478387808,383.11224811,0.00014368,2]
[404698302,1770478387844,1000.0,0.00013821,2]
[404698303,1770478387899,1500.0,0.00014368,2]
[404698304,1770478387951,2000.0,0.00014916,2]
[404698305,1770478388007,2500.0,0.00015464,2]
[404698306,1770478390183,500.0,0.00013273,2]
[404698307,1770478390218,1000.0,0.00013821,2]
[404698308,1770478390276,1500.0,0.00014368,2]
[404698309,1770478390327,263.67055513,0.00014916,2]
[404698310,1770478394129,500.0,0.00013699,2]
[404698311,1770478394174,1000.0,0.00014247,2]
[404698312,1770478394218,1500.0,0.00014795,2]
[404698313,1770478394276,750.38815467,0.00015342,2]
[404698314,1770478394309,500.0,0.00013273,2]
[404698315,1770478394353,1000.0,0.00013821,2]
[404698316,1770478394410,1000.0,0.00014368,2]
[404698317,1770478401087,500.0,0.00013699,2]
[404698318,1770478401141,1135.22677754,0.00014247,2]
[404698319,1770478401645,300.0,0.00013673,2]
[404698320,1770478401693,600.0,0.00014221,2]
[404698321,1770478401751,302.88397848,0.00014768,2]
[404698322,1770478406818,500.0,0.00013273,2]
[404698323,1770478406877,2000.0,0.00014916,2]
[404698324,1770478407074,1000.0,0.00013821,2]
[404698325,1770478407131,1500.0,0.00014368,2]
[404698326,1770478407235,2500.0,0.00015464,2]
[404698327,1770478408234,500.0,0.00013273,2]
[404698328,1770478408265,1000.0,0.00013821,2]
[404698329,1770478408292,590.48572007,0.00014916,2]
[404698330,1770478408336,1500.0,0.00014368,2]
[404698331,1770478504430,500.0,0.00013699,2]
[404698332,1770478504477,1000.0,0.00014247,2]
[404698333,1770478504532,1561.55294208,0.00014795,2]
[404698334,1770478504635,500.0,0.00013273,2]
[404698335,1770478504691,1000.0,0.00013821,2]
[404698336,1770478504743,1500.0,0.00014368,2]
[404698337,1770478504807,1400.14465402,0.00014916,2]
[404698338,1770478509181,500.0,0.00013273,2]
[404698339,1770478511892,1000.0,0.00014247,2]
[404698340,1770478511945,500.0,0.00013699,2]
[404698341,1770478511996,1500.0,0.00014795,2]
[404698342,1770478512053,2000.0,0.00015342,2]
[404698343,1770478512108,1692.44871217,0.0001589,2]
[404698344,1770478567365,639.55311367,0.00013273,2]
[404698345,1770478568425,217.85335559,0.00013273,2]
[404698346,1770478623403,1000.0,0.00014247,2]
[404698347,1770478623440,500.0,0.00013699,2]
[404698348,1770478623467,304.2506455,0.00014795,2]
[404698349,1770478627403,500.0,0.00013699,2]
[404698350,1770478627458,1000.0,0.00014247,2]
[404698351,1770478627487,259.46508342,0.00014795,2]
[404698352,1770478684804,1000.0,0.00013821,2]
[404698353,1770478684837,500.0,0.00013273,2]
[404698354,1770478684924,663.32996403,0.00014368,2]
[404698355,1770478685699,285.6403673,0.00013699,2]
[404698356,1770478805611,505.5503841,0.00013699,2]
[404698357,1770478808591,500.0,0.00013699,2]
[404698358,1770478808618,1500.0,0.00014795,2]
[404698359,1770478808646,1000.0,0.00014247,2]
[404698360,1770478808674,500.0,0.00013273,2]
[404698361,1770478808711,1025.20746915,0.00015342,2]
[404698362,1770478808738,1006.14423773,0.00013821,2]
[404698363,1770478809583,500.0,0.00013273,2]
[404698364,1770478809640,1000.0,0.00013821,2]
[404698365,1770478809847,1500.0,0.00014368,2]
[404698366,1770478809877,2000.0,0.00014916,2]
[404698367,1770478809906,2500.0,0.00015464,2]
[404698368,1770478926283,308.20281146,0.00013273,2]
[404698369,1770479049382,500.0,0.00013273,2]
[404698370,1770479049433,1000.0,0.00013821,2]
[404698371,1770479049495,1500.0,0.00014368,2]
[404698372,1770479049548,186.39844889,0.00014916,2]
[404698373,1770479073934,-151.0,0.00016012,2]
[404698374,1770479107716,151.0,0.000159,2]
[404698375,1770479351130,-178.11783507,0.00016096,2]
[404698376,1770479351152,-1200.0,0.0001618,2]
[404698377,1770479351173,-7540.08286341,0.00016264,2]
[404698378,1770479351194,-295.89005826,0.00016438,2]
[404698379,1770479351215,-300.0,0.00017294,2]
[404698380,1770479351235,-500.0,0.00017295,2]
[404698381,1770479351254,-632.94622104,0.00017295,2]
[404698382,1770479351277,-354.1827506,0.00017295,2]
[404698383,1770479351298,-500.0,0.00017295,2]
[404698384,1770479351322,-500.0,0.00017295,2]
[404698385,1770479351345,-500.0,0.00017295,2]
[404698386,1770479351370,-500.0,0.00017295,2]
[404698387,1770479351389,-500.0,0.00017295,2]
[404698388,1770479351410,-500.0,0.00017295,2]
[404698389,1770479351431,-500.0,0.00017295,2]
[404698390,1770479351452,-500.0,0.00017295,2]
[404698391,1770479351474,-500.0,0.00017295,2]
[404698392,1770479351495,-96.40113826,0.00017295,2]
[404698393,1770479353000,200.0,0.00015027,2]
[404698428,1770479432059,-673.41,0.00016705,2]
[404698429,1770479432074,-326.59,0.00016705,2]
[404698430,1770479432092,-1726.09111178,0.00017196,2]
[404698431,1770479432119,-1654.24408766,0.00017196,2]
[404698432,1770479432128,-5896.59600779,0.00017196,2]
[404698433,1770479432139,-300.0,0.00017295,2]
[404698434,1770479432149,-1200.0,0.00017295,2]
[404698435,1770479432159,-4342.15990455,0.00017296,2]
[404698436,1770479432170,-551.67568737,0.00017296,2]
[404698453,1770479438656,-583.32,0.00017296,2]
[404698454,1770479438665,-503.68799259,0.00017396,2]
[404698455,1770479438675,-500.0,0.00017396,2]
[404698456,1770479438685,-500.0,0.00017396,2]
[404698457,1770479438695,-500.0,0.00017396,2]
[404698458,1770479438704,-500.0,0.00017398,2]
[404698459,1770479438713,-18020.7586158,0.00017399,2]
[404698460,1770479438723,-500.0,0.00017684,2]
[404698462,1770479438732,-5309.85921453,0.00017685,2]
[404698463,1770479438742,-153.62152872,0.00018,2]
[404698464,1770479438752,-210.17904538,0.00018096,2]
[404698465,1770479438761,-3380.33519943,0.0001814,2]
[404698466,1770479438771,-1134.0954599,0.0001833,2]
[404698467,1770479438781,-151.34777063,0.00018367,2]
[404698468,1770479438790,-414.15751983,0.0001876,2]
[404698469,1770479438799,-420.0,0.00018884,2]
[404698470,1770479438809,-303.10001607,0.000189,2]
[404698471,1770479438819,-411.0,0.00018978,2]
[404698472,1770479438828,-5896.59600774,0.00018982,2]
[404698473,1770479438838,-999.99999901,0.00019,2]
[404698474,1770479438847,-3380.33519943,0.00019085,2]
[404698475,1770479438856,-163.57019039,0.00019132,2]
[404698476,1770479438866,-319.0,0.00019448,2]
[404698477,1770479438876,-318.6689225,0.00019486,2]
[404698478,1770479438885,-8041.9142501,0.00019486,2]
[404698479,1770479438895,-500.0,0.00019538,2]
[404698480,1770479438905,-500.0,0.00019538,2]
[404698481,1770479438915,-500.0,0.00019538,2]
[404698482,1770479438926,-500.0,0.00019538,2]
[404698483,1770479438936,-434.05499035,0.00019558,2]
[404698484,1770479438946,-781.29898263,0.00019558,2]
[404698485,1770479438956,-322.75270907,0.00019561,2]
[404698486,1770479438966,-580.95487632,0.00019561,2]
[404698487,1770479438977,-1032.80866901,0.00019561,2]
[404698488,1770479438988,-1613.76354533,0.00019561,2]
[404698489,1770479439000,-2323.81950528,0.00019561,2]
[404698490,1770479439011,-3162.97654886,0.00019561,2]
[404698491,1770479439022,-4131.23467606,0.00019561,2]
[404698492,1770479439034,-5228.59388689,0.00019588,2]
[404698493,1770479439044,-284.48,0.000196,2]
[404698494,1770479439055,-500.0,0.00019644,2]
[404698495,1770479439066,-1571.52377513,0.00019713,2]
[404698496,1770479439078,-1388.97596911,0.00019844,2]
[404698497,1770479439089,-6455.05418134,0.00019853,2]
[404698498,1770479439100,-1997.71308875,0.00019994,2]
[404698499,1770479439111,-500.0,0.00019995,2]
[404698500,1770479439122,-243.05983,0.00019995,2]
[404698501,1770479439133,-171.32,0.0002,2]
[404698502,1770479439143,-1000.0,0.0002,2]
[404698503,1770479439154,-151.81564138,0.0002,2]
[404698504,1770479439165,-3380.33519943,0.00020029,2]
[404698505,1770479439179,-242.24025569,0.00020096,2]
[404698506,1770479439192,-7802.80494386,0.00020117,2]
[404698507,1770479439204,-653.62229,0.00020222,2]
[404698508,1770479439215,-915.27,0.00020248,3]
[404698509,1770479439225,-588.39,0.00020248,3]
[404698510,1770479439236,-294.2,0.00020248,3]
[404698511,1770479439246,-882.6,0.00020248,3]
[404698512,1770479439264,-2170.27495174,0.00020253,2]
[404698513,1770479439274,-500.0,0.00020269,2]
[404698514,1770479439284,-500.0,0.00020462,2]
[404698515,1770479439301,-500.0,0.00020543,2]
[404698516,1770479439311,-587.0,0.0002062,2]
[404698517,1770479439321,-3125.1959305,0.00020662,2]
[404698518,1770479439332,-609.2539391,0.00020734,2]
[404698519,1770479439341,-800.0,0.00020763,2]
[404698520,1770479439351,-800.0,0.00020763,2]
[404698521,1770479439361,-800.0,0.00020767,2]
[404698522,1770479439371,-5896.59600774,0.00020769,2]
[404698523,1770479439381,-800.0,0.00020816,2]
[404698524,1770479439390,-500.0,0.00020817,2]
[404698525,1770479439399,-800.0,0.00020845,2]
[404698526,1770479439408,-800.0,0.00020909,2]
[404698527,1770479439417,-1376.81911643,0.00020967,2]
[404698528,1770479439427,-3380.33519943,0.00020973,2]
[404698529,1770479439437,-800.0,0.00020989,2]
[404698530,1770479439447,-500.0,0.00020999,2]
[404698531,1770479439456,-15688.71874037,0.00021,2]
[404698532,1770479439466,-4253.73890541,0.0002107,2]
[404698533,1770479439476,-653.62229,0.00021073,2]
[404698534,1770479439486,-500.0,0.00021091,2]
[404698535,1770479439496,-150.0,0.00021346,7]
[404698536,1770479439512,-1233.742677,0.00021346,7]
[404698537,1770479439522,-2317.485354,0.00021346,7]
[404698538,1770479439532,-3401.228032,0.00021346,7]
[404698539,1770479439541,-4484.970709,0.00021346,7]
[404698540,1770479439551,-5568.713386,0.00021346,7]
[404698541,1770479439561,-6652.456064,0.00021346,7]
[404698542,1770479439571,-7736.198741,0.00021346,7]
[404698543,1770479439581,-8819.941418,0.00021346,7]
[404698544,1770479439591,-9903.684096,0.00021346,7]
[404698545,1770479439729,-500.0,0.00021365,2]
[404698546,1770479439739,-179.688882,0.00021426,7]
[404698547,1770479439754,-5550.34797257,0.00021479,2]
[404698549,1770479439764,-500.0,0.0002152,2]